Cogmind - Beta 13 @@@ ROGUE MODE // 2024.04.07 @ 14:01:11 Player: Jraekeid Result: Destroyed by S-10 Pest with Light Assault Rifle Performance ------------- Evolutions (0) 0 Regions Visited (2) 400 Robots Destroyed (17) 85 Value Destroyed (426) 426 Prototype IDs (4) 80 Alien Tech Used (0) 0 Bonus (0) 0 TOTAL SCORE: 991 Bonus ------- None Cogmind --------- Core Integrity 0/250 Matter 266/300 Energy 100/100 System Corruption 4% Temperature Cool (0) Movement Core (700) Ox13 Location -10/Mines Parts ------- > --- POWER (1) -------- (None) > --- PROPULSION (2) --- (None) > --- UTILITY (2) ------ High-capacity Storage Unit > --- WEAPON (2) ------- Assault Rifle > --- INVENTORY (20) --- Ion Engine Light Ion Engine Light Ion Engine Light Treads Light Treads Small Storage Unit Medium Matter Pod (100) High-capacity Matter Pod (138) Light Cannon Mining Claw Peak State ------------ > --- POWER ------------ (None) > --- PROPULSION ------- Light Treads Light Treads > --- UTILITY ---------- High-capacity Storage Unit Tractor Beam > --- WEAPON ----------- Small Laser Assault Rifle > --- INVENTORY -------- Ion Engine Light Ion Engine Light Ion Engine Wheel Wheel Small Storage Unit Medium Matter Pod Small Laser Assault Rifle Light Cannon Mining Claw [Rating: 7] Favorites ----------- Power None Propulsion Wheel Treads Light Treads Wheel Wheel Utility High-capacity Storage Unit Device Tractor Beam Storage High-capacity Storage Unit Weapon Assault Rifle Energy Gun Small Laser Ballistic Gun Assault Rifle Build | -11 -10 -10 ------- Run | Yrd Mat Min Slots Evolved . | . . . Power . | . . . Propulsion . | . . . Utility . | . . . Weapon . | . . . Parts Attached 14 | 5 7 2 Power . | . . . Engine . | . . . Core . | . . . Reactor . | . . . Propulsion 6 | 2 4 . Treads 2 | . 2 . Leg . | . . . Wheel 4 | 2 2 . Hover . | . . . Flight . | . . . Utility 4 | 1 3 . Device 2 | . 2 . Storage 2 | 1 1 . Processor . | . . . Hackware . | . . . Protection . | . . . Artifact . | . . . Weapon 4 | 2 . 2 Energy Gun 2 | 1 . 1 Energy Cannon . | . . . Ballistic Gun 2 | 1 . 1 Ballistic Cannon . | . . . Launcher . | . . . Special Weapon . | . . . Impact Weapon . | . . . Slashing Weapon . | . . . Piercing Weapon . | . . . Special Melee Weapon . | . . . Unidentified Prototypes . | . . . Parts Lost 8 | . 2 6 Power . | . . . Propulsion 3 | . 1 2 Utility 2 | . 1 1 Weapon 3 | . . 3 Highest Loss Streak 2 | . 2 2 To Critical Strikes . | . . . Average Slot Usage (%) 69 | . 74 64 Wheel 20 | . 22 17 Device 6 | . 8 4 Storage 14 | . 14 14 Energy Gun 13 | . 14 13 Ballistic Gun 14 | . 14 14 Naked Turns . | . . . Heaviest Build 44 | 8 44 44 Greatest Support 26 | 26 26 20 Greatest Overweight (x) 4 | . 4 4 Average Overweight (x) 2 | . 1 3 Largest Inventory Capacity 20 | 8 20 20 Average Capacity 18 | 6 18 20 Most Carried 12 | 5 12 12 Average Carried 8 | 1 7 10 Final Capacity 20 | 8 20 20 Final Carried 12 | 2 12 10 Class Distribution -------------------- 100% | Mutant Dominant Class ---------------- Mutant | -10/Materials Mutant | -10/Mines Resources | -11 -10 -10 ----------- Run | Yrd Mat Min Matter Collected 716 | 138 322 256 Remotely 331 | . 227 104 Salvage Created 624 | . 322 302 Parts 34 | . 19 15 Haulers Intercepted 1 | . 1 . Recyclers Shooed . | . . . Parts Field Recycled . | . . . Retrieved Matter . | . . . Parts Self-Destructed . | . . . Prevented . | . . . Kills | -11 -10 -10 ------- Run | Yrd Mat Min Combat Hostiles Destroyed 11 | . 5 6 Guns 11 | . 5 6 Classes Destroyed 7 | . 4 3 Builder 1 | . . 1 Hauler 1 | . 1 . Recycler 1 | . . 1 Operator 1 | . 1 . Watcher 2 | . 2 . Swarmer 2 | . . 2 Grunt 9 | . 5 4 Best Kill Streak 3 | . 3 3 Combat Bots Only 2 | . 2 2 Max Kills in Single Turn 2 | . 1 2 Gunslinging . | . . . Exploded . | . . . Melee . | . . . Uniques/NPCs Destroyed . | . . . Combat | -11 -10 -10 -------- Run | Yrd Mat Min Hostile Shots Fired 92 | . 46 46 Missed 29 | . 16 13 Damage Taken 742 | . 378 364 Core 252 | . 111 141 Absorbed by Shields . | . . . Core Remaining (%) 100 | 100 . . Volleys Fired 62 | . 40 22 Largest 2 | . 2 2 Hottest 60 | . 60 60 Shots Fired 123 | . 80 43 Gun 123 | . 80 43 Cannon . | . . . Launcher . | . . . Special . | . . . Kinetic 62 | . 40 22 Thermal 61 | . 40 21 Explosive . | . . . Electromagnetic . | . . . Robot Hit Streak 10 | . 10 8 Robot Miss Streak 5 | . 4 5 Penetration Max . | . . . Secondary Targets 2 | . 1 1 Max Gunslinging Chain 1 | . 1 1 Shots Hit Robots 70 | . 49 21 Core Hits 31 | . 17 14 Critical Kills . | . . . Critical Parts Destroyed . | . . . Critical Strikes . | . . . Melee Attacks . | . . . Impact . | . . . Slashing . | . . . Piercing . | . . . Sneak Attacks . | . . . Combat Hostiles . | . . . Follow-up Attacks . | . . . Damage Inflicted 845 | . 550 295 Guns 845 | . 550 295 Cannons . | . . . Explosions . | . . . Melee . | . . . Ramming . | . . . Kinetic 455 | . 290 165 Thermal 390 | . 260 130 Explosive . | . . . Electromagnetic . | . . . Impact . | . . . Slashing . | . . . Piercing . | . . . Highest Corruption 4 | . 4 4 Average Corruption 3 | . 2 4 Corruption Purged . | . . . Corruption Blocked . | . . . Effects 11 | . 4 7 Message Errors 2 | . . 2 Matter Fused 3 | . . 3 Heat Flow Errors 2 | . 2 . Energy Discharges 1 | . 1 . Data Loss (minor) 2 | . 1 1 Alerts 1 | . . 1 Overload Shots . | . . . Overflow Damage . | . . . Projectiles . | . . . Explosions . | . . . Melee . | . . . Knockbacks . | . . . Impact . | . . . Kinetic . | . . . Secondary . | . . . Self-Inflicted Damage . | . . . Shots . | . . . Rammed . | . . . Targets Rammed . | . . . Kicked . | . . . Crushed . | . . . Highest Temperature 186 | . 186 12 Average Temperature 30 | . 36 4 Received Heat Transfer 378 | . 231 147 Siege Activations . | . . . Robots Corrupted . | . . . Combat Hostiles . | . . . Parts Fried . | . . . Impact Corruptions . | . . . Robots Melted . | . . . Combat Hostiles . | . . . Parts Melted . | . . . Heat Transferred 900 | . 600 300 Parts Sabotaged . | . . . Parts Stolen . | . . . Parts Stripped . | . . . Power Chain Reactions . | . . . Alert | -11 -10 -10 ------- Run | Yrd Mat Min Peak Influence 217 | . 217 100 Initial 16 | . . 16 Average 79 | . 94 68 Maximum Alert Level 1 | . 1 . Low Security (%) 94 | 100 89 100 Level 1 5 | . 10 . Level 2 . | . . . Level 3 . | . . . Level 4 . | . . . Level 5 . | . . . High Security . | . . . Max Security . | . . . Squads Dispatched 2 | . 2 . Investigation 1 | . 1 . Extermination . | . . . Reinforcement 1 | . 1 . Assault . | . . . Garrison . | . . . Intercept . | . . . Searches Triggered . | . . . Construction Impeded . | . . . Haulers Reinforced . | . . . Active Scanning Responses . | . . . Cargo Convoy Interrupts . | . . . Stealth | -11 -10 -10 --------- Run | Yrd Mat Min Distress Signals 1 | . 1 . Communications Jammed . | . . . Distress Signals . | . . . Times Spotted 22 | . 14 8 Peak Tracking Total 4 | . 4 3 Tactical Retreats 2 | . 1 1 Traps | -11 -10 -10 ------- Run | Yrd Mat Min Traps Triggered 4 | . 4 . Indirectly . | . . . Trap Hack Attempts . | . . . Triggered . | . . . Disarmed . | . . . Reprogrammed . | . . . Reused . | . . . Traps Extracted . | . . . Installed . | . . . Triggered . | . . . Machines | -11 -10 -10 ---------- Run | Yrd Mat Min Machines Disabled . | . . . Max in Single Turn . | . . . Machines Repaired . | . . . Machines Dismantled . | . . . Machines Sabotaged . | . . . Overloaded Fab Kills . | . . . Hacking | -11 -10 -10 --------- Run | Yrd Mat Min Machines Accessed 4 | . 4 . Terminals 4 | . 4 . Fabricators . | . . . Repair Stations . | . . . Recycling Units . | . . . Scanalyzers . | . . . Garrison Access . | . . . Total Hacks 10 | . 10 . Successful 5 | . 5 . Failed 5 | . 5 . Catastrophic . | . . . Database Lockouts . | . . . Manual . | . . . Terminals 10 | . 10 . Fabricators . | . . . Repair Stations . | . . . Recycling Units . | . . . Scanalyzers . | . . . Garrison Access . | . . . Terminal Hacks 5 | . 5 . Prototype ID Bank 2 | . 2 . Level Access Points 1 | . 1 . Dispatch Records 1 | . 1 . Zone Layout 1 | . 1 . Fabricator Hacks . | . . . Repair Station Hacks . | . . . Recycling Unit Hacks . | . . . Scanalyzer . | . . . Garrison Access Hacks . | . . . Unauthorized Hacks . | . . . Terminals . | . . . Fabricators . | . . . Repair Stations . | . . . Recycling Units . | . . . Scanalyzers . | . . . Garrison Access . | . . . Data Cores Recovered . | . . . Used . | . . . Hacking Detections 2 | . 2 . Full Trace Events . | . . . Feedback Events . | . . . Feedback Blocked . | . . . Robot Schematics Acquired . | . . . Robots Built . | . . . Authchips . | . . . Time . | . . . Total Robot Build Rating . | . . . Part Schematics Acquired . | . . . Parts Built . | . . . Authchips . | . . . Time . | . . . Total Part Build Rating . | . . . Parts Repaired . | . . . Time . | . . . Parts Recycled . | . . . Recycled Matter . | . . . Retrieved Matter . | . . . Retrieved Components . | . . . Parts Scanalyzed . | . . . Part Schematics Acquired . | . . . Parts Damaged . | . . . Bothacking | -11 -10 -10 ------------ Run | Yrd Mat Min Used RIF Installer . | . . . Robots Hacked . | . . . Non-combat . | . . . Combat . | . . . Robot Hacks Applied . | . . . Relay Couplers Released . | . . . Fabnet Peak Effective % . | . . . Robots Rewired . | . . . Allies Hacked . | . . . Hacks Repelled . | . . . Allies | -11 -10 -10 -------- Run | Yrd Mat Min Total Allies . | . . . Largest Group . | . . . Highest-Rated Group . | . . . Highest-Rated Ally . | . . . Total Orders . | . . . Ally Attacks . | . . . Total Damage . | . . . Kills . | . . . Allies Corrupted . | . . . Allies Melted . | . . . Intel | -11 -10 -10 ------- Run | Yrd Mat Min Robot Analysis Total . | . . . Derelict Logs Recovered 2 | . . 2 Drone Launches . | . . . Drone Recoveries . | . . . Exploration | -11 -10 -10 ------------- Run | Yrd Mat Min Turns Passed 1047 | 41 536 470 Spaces Moved 685 | 38 342 305 Core 13 | 13 . . Treads . | . . . Legs . | . . . Wheels 672 | 25 342 305 Hover . | . . . Flight . | . . . Fastest Speed 50 | 50 90 110 Average Speed 119 | 76 113 132 Slowest Speed 140 | 90 140 140 Overloaded Moves . | . . . Propulsion Burnouts . | . . . Robots Hopped . | . . . Cave-ins Triggered . | . . . Exploration Rate (%) 37 | 3 58 50 Regions Visited 2 Branch Regions 1 Pre-discovered Areas . | . . . Known Exits Taken . | . . . Unknown Exits Taken 2 | 1 1 . Scrap Searched . | . . . Spaces Dug . | . . . Terrain Destroyed . | . . . Melee . | . . . Projectile . | . . . AOE . | . . . Terrain Rammed . | . . . Walls Destroyed . | . . . Machines Disabled . | . . . Actions | -11 -10 -10 --------- Run | Yrd Mat Min Total 786 | 49 408 329 Wait 7 | . 7 . Move 683 | 37 341 305 Hop . | . . . Pick Up 20 | 7 13 . Fast Attach . | . . . Attach 10 | 5 3 2 Detach . | . . . Swap 4 | . 4 . Drop . | . . . Fire 62 | . 40 22 Melee . | . . . Ram . | . . . Kick . | . . . Crush . | . . . Escape Stasis . | . . . Rewire . | . . . Trap . | . . . Miscellaneous . | . . . Route ------- -11/Scrapyard -10/Materials (discovered 5 exits: *Mat x3 / [*Min x2]) -10/Mines (discovered 1 exit: *Mat) History --------- Turn | Location | Event 8 | -11/Scrapyard | Discovered new exit (range 16) 42 | -11/Scrapyard | Entered Materials 144 | -10/Materials | Identified exit to Materials 300 | -10/Materials | Build established: Mutant 317 | -10/Materials | Discovered new exit (range 6) 569 | -10/Materials | Discovered new exit (range 10) 578 | -10/Materials | Entered Mines 610 | -10/Mines | Core integrity fell below 50% 682 | -10/Mines | Discovered exit to Materials (range 5) 763 | -10/Mines | Learned 2 Materials zone layouts 783 | -10/Mines | Learned Materials security intel 1031 | -10/Mines | Core integrity fell below 20% 1048 | -10/Mines | Destroyed by S-10 Pest with Light Assault Rifle Last Messages --------------- K-01 Serf collects debris. System corrupted: Matter fused (-9). Acquired derelict log, extracted data. Data stored: Materials zone layouts (x2). K-01 Serf collects debris. Acquired derelict log, extracted data. Data stored: Materials security intel. K-01 Serf collects debris. System corrupted: IFF burst signal emitted. K-01 Serf collects debris. System corrupted: Matter fused (-8). System corrupted: Component data lost. K-01 Serf collects debris. S-10 Pest destroyed. System corrupted: Matter fused (-9). Wheel destroyed. S-10 Pest destroyed. U-05 Engineer destroyed. K-01 Serf collects debris. Sml. Laser destroyed. Map ----- +----------------------------------------------------+ | ??????### ##??########## #????????????# #?????# | | ????????## ##??????????# #????????????# ?????# | | ?????????## ##?????????# #????????????### ????? | | ??????????# ##????????# #??????????????? #???? | | ??????????# #????????# #????????????????#???? | | ??????????# #????????# ????????????????????? | | ??????????# ##???????? ????????????????????? | | ??????????# ##????????? ????????????????????? | | ??????????# ####?????????? ????????????????????? | | ??????????# #????????????? ????????????????????? | | ??????????# #?????????????# ????????????????????? | | ??????????# #??????????????# ????????????????????? | | ???######## #######????????? ????????????????????? | | ???# #????????? ????????????????????? | | ???# ############ #??????????????????????????????? | | ???# #??????????# #??????????????????????????????? | | ???# #??????????# #??????????????????????????????? | | #### #??????????# #??????????????????????????????? | | #??????????# ##????????????????########?????? | | ######??????????# ###?????????????## ## ##????? | | #???????????????# ##????????????# #????? | | ????????????????## #??????####### """ #????? | | ?????????????????# k ##?????# """ #????? | | ?????????????????# ####### ###### """ ###### | | ?????????????????## !s%[* #????# | | ??????????????????### !%*@= #????# ########## | | ????????????????????## *########???# ##????????? | | ?????????????????????####??????????#####?????????? | | ?????????????????????????????????????????????????? | | ?????????????????????????????????????????????????? | | ?????????????????????????????????????????????????? | | ?????????????????????????????????????????????????? | | ?????????????????????????????????????????????????? | | | | | | | | | | | | | | | | | | | | | | | | | | | | | | | | | | | +----------------------------------------------------+ Best States ------------- Heat Dissipation 25 Energy Generation 5 Energy Capacity 100 Matter Stores 300 Matter Capacity 300 Sight Range 16 Terrain Scan Density 10 Evasion (%) 50 Item Schematics ----------------- None Robot Schematics ------------------ None Fabricated ------------ Nothing Alien Tech Used ----------------- None Achievements -------------- None Challenges ------------ None Game ------ Seed IonicMinesnifferPick Manual? 0 Play Time 00:13:15 Cumulative 9.8 hours Start 2024.04.07 @ 13:50:02 End 2024.04.07 @ 14:01:11 Sessions 1 Manual Loads 0 Difficulty Rogue Special Mode None Game No. 13 Rogue 13 Adventurer 0 Explorer 0 Win Type - Total 0 Types 0/0/0/0/0/0/0/0/0 Lore% 12 Gallery% 15 Achievement% 13 Wizard Run 0 Options --------- Layout 1 ASCII 0 Keyboard 0 Movement Numpad Keybinds 0 Fullscreen 0 Font 20/SmallcapsGlow Map View 50x35 Zoom Use 0% Tactical HUD 0 Map Filters NONE Filters NONE Steam 1 RUN: e522ae2f-e6ce-4b73-bf15-64cf13137e87